[Event "Titled Tuesday Blitz April 25 Late 2023"]
[White "Zakarian, David"]
[Black "Romero Ruscalleda, Josep"]
[WhiteFideId "13301276"]
[BlackFideId "2231859"]
[WhiteElo "2306"]
[BlackElo "2183"]
[Result "1-0"]
[Round "08"]
[TimeControl "180+2"]
[Date "2023.04.25"]
[WhiteClock "0:00:45"]
[BlackClock "0:00:08"]

1. d4 {[%clk 0:03:00]}  g6 {[%clk 0:02:59]} 2. h4 {[%clk 0:02:58]}  h5 {[%clk 0:02:59]} 3. c4 {[%clk 0:02:53]}  Bg7 {[%clk 0:02:58]} 4. Nc3 {[%clk 0:02:54]}  d6 {[%clk 0:02:58]} 5. e4 {[%clk 0:02:54]}  Nc6 {[%clk 0:02:58]} 6. Be3 {[%clk 0:02:54]}  e5 {[%clk 0:02:57]} 7. d5 {[%clk 0:02:53]}  Nce7 {[%clk 0:02:57]} 8. Bd3 {[%clk 0:02:50]}  Nf6 {[%clk 0:01:36]} 9. f3 {[%clk 0:02:47]}  Nd7 {[%clk 0:01:34]} 10. Nh3 {[%clk 0:02:41]}  Nc5 {[%clk 0:01:29]} 11. Nf2 {[%clk 0:02:41]}  Nxd3+ {[%clk 0:01:26]} 12. Nxd3 {[%clk 0:02:42]}  O-O {[%clk 0:01:25]} 13. Qd2 {[%clk 0:02:41]}  f5 {[%clk 0:01:25]} 14. Bh6 {[%clk 0:02:39]}  Bxh6 {[%clk 0:01:13]} 15. Qxh6 {[%clk 0:02:39]}  f4 {[%clk 0:01:13]} 16. c5 {[%clk 0:02:30]}  Rf7 {[%clk 0:01:09]} 17. O-O-O {[%clk 0:02:27]}  a6 {[%clk 0:01:05]} 18. Rd2 {[%clk 0:02:04]}  Bd7 {[%clk 0:01:03]} 19. Nxe5 {[%clk 0:01:53]}  dxe5 {[%clk 0:00:59]} 20. d6 {[%clk 0:01:54]}  cxd6 {[%clk 0:00:43]} 21. cxd6 {[%clk 0:01:55]}  Nc6 {[%clk 0:00:38]} 22. Qxg6+ {[%clk 0:01:54]}  Rg7 {[%clk 0:00:38]} 23. Qxh5 {[%clk 0:01:54]}  Qa5 {[%clk 0:00:30]} 24. a3 {[%clk 0:01:33]}  Be6 {[%clk 0:00:24]} 25. Nd5 {[%clk 0:01:23]}  Bxd5 {[%clk 0:00:20]} 26. Rxd5 {[%clk 0:01:24]}  Qa4 {[%clk 0:00:16]} 27. d7 {[%clk 0:01:16]}  Qc4+ {[%clk 0:00:12]} 28. Kb1 {[%clk 0:01:15]}  Rd8 {[%clk 0:00:11]} 29. Rc1 {[%clk 0:01:12]}  Qe2 {[%clk 0:00:10]} 30. Rd6 {[%clk 0:00:54]}  Rxg2 {[%clk 0:00:08]} 31. Rg6+ {[%clk 0:00:46]}  Rxg6 {[%clk 0:00:08]} 32. Qxg6+ {[%clk 0:00:47]}  Kf8 {[%clk 0:00:08]} 33. Qf6+ {[%clk 0:00:46]}  Kg8 {[%clk 0:00:08]} 34. Rg1+ {[%clk 0:00:46]}  Kh7 {[%clk 0:00:08]} 35. Qg7# {[%clk 0:00:45]} 1-0


[Site "https://www.chess.com"]

[Event "Titled Tuesday Blitz April 25 Late 2023"]
[White "D`Arruda, Ricardo D."]
[Black "Sailer, Mike"]
[WhiteFideId "100692"]
[BlackFideId "2012901"]
[WhiteElo "2271"]
[BlackElo "2109"]
[Result "1-0"]
[Round "08"]
[TimeControl "180+2"]
[Date "2023.04.25"]
[WhiteClock "0:00:38"]
[BlackClock "0:00:09"]

1. d4 {[%clk 0:03:00]}  d5 {[%clk 0:02:58]} 2. Nf3 {[%clk 0:02:59]}  Bf5 {[%clk 0:02:52]} 3. g3 {[%clk 0:02:59]}  e6 {[%clk 0:02:50]} 4. Bg2 {[%clk 0:03:00]}  Nf6 {[%clk 0:02:47]} 5. O-O {[%clk 0:02:59]}  Be7 {[%clk 0:02:42]} 6. Nh4 {[%clk 0:02:59]}  Bg4 {[%clk 0:02:42]} 7. h3 {[%clk 0:02:59]}  Bh5 {[%clk 0:02:38]} 8. g4 {[%clk 0:02:59]}  Bg6 {[%clk 0:02:37]} 9. Nc3 {[%clk 0:02:52]}  Nbd7 {[%clk 0:02:34]} 10. Bf4 {[%clk 0:02:46]}  c5 {[%clk 0:02:24]} 11. Nxg6 {[%clk 0:02:43]}  hxg6 {[%clk 0:02:22]} 12. dxc5 {[%clk 0:02:42]}  Nxc5 {[%clk 0:02:16]} 13. e3 {[%clk 0:02:39]}  Bd6 {[%clk 0:02:09]} 14. Qd4 {[%clk 0:02:32]}  Bxf4 {[%clk 0:02:04]} 15. Qxf4 {[%clk 0:02:33]}  Qb6 {[%clk 0:01:59]} 16. Rab1 {[%clk 0:02:32]}  O-O {[%clk 0:01:48]} 17. Rfd1 {[%clk 0:02:21]}  Rac8 {[%clk 0:01:32]} 18. Rd2 {[%clk 0:02:17]}  a5 {[%clk 0:01:21]} 19. a3 {[%clk 0:02:16]}  Qa6 {[%clk 0:01:15]} 20. Bf1 {[%clk 0:02:13]}  Qa8 {[%clk 0:01:00]} 21. f3 {[%clk 0:02:09]}  b6 {[%clk 0:00:50]} 22. Nb5 {[%clk 0:02:05]}  Rfd8 {[%clk 0:00:45]} 23. Rbd1 {[%clk 0:01:54]}  Rd7 {[%clk 0:00:35]} 24. c3 {[%clk 0:01:47]}  Nb3 {[%clk 0:00:31]} 25. Rh2 {[%clk 0:01:39]}  Qc6 {[%clk 0:00:30]} 26. h4 {[%clk 0:01:34]}  Re7 {[%clk 0:00:20]} 27. Nd4 {[%clk 0:01:16]}  Nxd4 {[%clk 0:00:20]} 28. exd4 {[%clk 0:01:16]}  Rce8 {[%clk 0:00:16]} 29. Re1 {[%clk 0:01:03]}  Nd7 {[%clk 0:00:17]} 30. Rhe2 {[%clk 0:00:57]}  b5 {[%clk 0:00:17]} 31. h5 {[%clk 0:00:56]}  gxh5 {[%clk 0:00:17]} 32. gxh5 {[%clk 0:00:57]}  Nf8 {[%clk 0:00:10]} 33. Qh4 {[%clk 0:00:52]}  b4 {[%clk 0:00:09]} 34. cxb4 {[%clk 0:00:45]}  axb4 {[%clk 0:00:10]} 35. Rg2 {[%clk 0:00:43]}  bxa3 {[%clk 0:00:09]} 36. bxa3 {[%clk 0:00:42]}  Qd6 {[%clk 0:00:09]} 37. Qf6 {[%clk 0:00:38]}  g6 {[%clk 0:00:09]} 38. h6 {[%clk 0:00:38]} 1-0


[Site "https://www.chess.com"]

[Event "Titled Tuesday Blitz April 25 Late 2023"]
[White "Mickiewicz, Piotr"]
[Black "Delorme, Alban"]
[WhiteFideId "1114891"]
[BlackFideId "623636"]
[WhiteElo "2246"]
[BlackElo "2196"]
[Result "0-1"]
[Round "08"]
[TimeControl "180+2"]
[Date "2023.04.25"]
[WhiteClock "0:00:16"]
[BlackClock "0:00:19"]

1. Nf3 {[%clk 0:03:00]}  Nf6 {[%clk 0:02:50]} 2. e3 {[%clk 0:03:00]}  g6 {[%clk 0:02:48]} 3. b3 {[%clk 0:02:59]}  Bg7 {[%clk 0:02:49]} 4. Bb2 {[%clk 0:02:59]}  O-O {[%clk 0:02:49]} 5. Be2 {[%clk 0:02:59]}  d5 {[%clk 0:02:48]} 6. O-O {[%clk 0:03:00]}  c5 {[%clk 0:02:48]} 7. c4 {[%clk 0:03:00]}  Nc6 {[%clk 0:02:41]} 8. cxd5 {[%clk 0:02:59]}  Nxd5 {[%clk 0:02:41]} 9. Bxg7 {[%clk 0:02:59]}  Kxg7 {[%clk 0:02:41]} 10. Qc1 {[%clk 0:03:00]}  b6 {[%clk 0:02:40]} 11. a3 {[%clk 0:03:00]}  Bb7 {[%clk 0:02:38]} 12. Qb2+ {[%clk 0:02:50]}  Kg8 {[%clk 0:02:33]} 13. Rd1 {[%clk 0:02:51]}  Qd6 {[%clk 0:02:29]} 14. d4 {[%clk 0:02:49]}  cxd4 {[%clk 0:02:29]} 15. Nxd4 {[%clk 0:02:49]}  Nxd4 {[%clk 0:02:29]} 16. Rxd4 {[%clk 0:02:48]}  Qf6 {[%clk 0:02:18]} 17. Rd2 {[%clk 0:02:31]}  Qxb2 {[%clk 0:02:06]} 18. Rxb2 {[%clk 0:02:31]}  Rac8 {[%clk 0:02:06]} 19. Nd2 {[%clk 0:02:31]}  Nc3 {[%clk 0:02:06]} 20. Bf3 {[%clk 0:02:31]}  Bxf3 {[%clk 0:02:05]} 21. Nxf3 {[%clk 0:02:30]}  e6 {[%clk 0:01:56]} 22. Kf1 {[%clk 0:02:23]}  Rfd8 {[%clk 0:01:43]} 23. Rc1 {[%clk 0:02:22]}  Ne4 {[%clk 0:01:35]} 24. Rxc8 {[%clk 0:02:07]}  Rxc8 {[%clk 0:01:36]} 25. Ke2 {[%clk 0:02:07]}  Kf8 {[%clk 0:01:23]} 26. Nd2 {[%clk 0:02:05]}  Nc3+ {[%clk 0:01:14]} 27. Kd3 {[%clk 0:02:02]}  Nd1 {[%clk 0:01:13]} 28. Rb1 {[%clk 0:01:57]}  Nxf2+ {[%clk 0:01:13]} 29. Ke2 {[%clk 0:01:57]}  Ng4 {[%clk 0:01:11]} 30. Ne4 {[%clk 0:01:55]}  Rc2+ {[%clk 0:01:08]} 31. Kf3 {[%clk 0:01:50]}  Ne5+ {[%clk 0:01:06]} 32. Kg3 {[%clk 0:01:51]}  f5 {[%clk 0:01:03]} 33. Nf2 {[%clk 0:01:24]}  g5 {[%clk 0:00:56]} 34. Nd1 {[%clk 0:01:06]}  h5 {[%clk 0:00:51]} 35. Rb2 {[%clk 0:00:53]}  h4+ {[%clk 0:00:39]} 36. Kh3 {[%clk 0:00:53]}  Rc1 {[%clk 0:00:39]} 37. Rd2 {[%clk 0:00:52]}  Ng4 {[%clk 0:00:36]} 38. Nb2 {[%clk 0:00:33]}  Rf1 {[%clk 0:00:24]} 39. g3 {[%clk 0:00:30]}  hxg3 {[%clk 0:00:24]} 40. Kxg3 {[%clk 0:00:23]}  Nxe3 {[%clk 0:00:22]} 41. Nd3 {[%clk 0:00:16]}  f4+ {[%clk 0:00:20]} 42. Kh3 {[%clk 0:00:16]}  Rf3# {[%clk 0:00:19]} 0-1


[Site "https://www.chess.com"]

[Event "Titled Tuesday Blitz April 25 Late 2023"]
[White "Fuentes Godoy, Lilia Ivonne"]
[Black "Toniutti, Ezio"]
[WhiteFideId "5104130"]
[BlackFideId "113034"]
[WhiteElo "2096"]
[BlackElo "2215"]
[Result "0-1"]
[Round "08"]
[TimeControl "180+2"]
[Date "2023.04.25"]
[WhiteClock "0:00:01"]
[BlackClock "0:01:39"]

1. d4 {[%clk 0:03:00]}  d5 {[%clk 0:02:55]} 2. c4 {[%clk 0:03:00]}  c6 {[%clk 0:02:55]} 3. cxd5 {[%clk 0:03:00]}  cxd5 {[%clk 0:02:54]} 4. Bf4 {[%clk 0:03:01]}  Nf6 {[%clk 0:02:55]} 5. Nc3 {[%clk 0:02:59]}  Nc6 {[%clk 0:02:55]} 6. e3 {[%clk 0:02:59]}  a6 {[%clk 0:02:55]} 7. Bd3 {[%clk 0:02:53]}  Bg4 {[%clk 0:02:55]} 8. f3 {[%clk 0:02:45]}  Bh5 {[%clk 0:02:53]} 9. Nge2 {[%clk 0:02:44]}  e6 {[%clk 0:02:51]} 10. O-O {[%clk 0:02:43]}  Be7 {[%clk 0:02:49]} 11. a3 {[%clk 0:02:37]}  O-O {[%clk 0:02:49]} 12. b4 {[%clk 0:02:31]}  Bg6 {[%clk 0:02:49]} 13. Rc1 {[%clk 0:02:30]}  Nd7 {[%clk 0:02:40]} 14. Bg3 {[%clk 0:02:21]}  Re8 {[%clk 0:02:38]} 15. Nf4 {[%clk 0:02:19]}  Nb6 {[%clk 0:02:34]} 16. Nxg6 {[%clk 0:01:30]}  hxg6 {[%clk 0:02:31]} 17. Qe2 {[%clk 0:01:24]}  Rc8 {[%clk 0:02:25]} 18. Rc2 {[%clk 0:01:24]}  Bd6 {[%clk 0:02:24]} 19. Rfc1 {[%clk 0:01:24]}  Bxg3 {[%clk 0:02:23]} 20. hxg3 {[%clk 0:01:25]}  e5 {[%clk 0:02:21]} 21. dxe5 {[%clk 0:01:19]}  Nxe5 {[%clk 0:02:22]} 22. Rd1 {[%clk 0:00:21]}  Qf6 {[%clk 0:02:01]} 23. Qf2 {[%clk 0:00:05]}  Rxc3 {[%clk 0:01:48]} 24. Rxc3 {[%clk 0:00:05]}  Nxf3+ {[%clk 0:01:48]} 25. Qxf3 {[%clk 0:00:04]}  Qxc3 {[%clk 0:01:48]} 26. Rf1 {[%clk 0:00:04]}  Re7 {[%clk 0:01:41]} 27. Bb1 {[%clk 0:00:01]}  Qxe3+ {[%clk 0:01:39]} 28. Qxe3 {[%clk 0:00:01]}  Rxe3 {[%clk 0:01:40]} 29. Rc1 {[%clk 0:00:01]}  Nc4 {[%clk 0:01:39]} 0-1


[Site "https://www.chess.com"]

[Event "Titled Tuesday Blitz April 25 Late 2023"]
[White "Novikova, Galina"]
[Black "Seletsky, Grigory"]
[WhiteFideId "4157095"]
[BlackFideId "14112191"]
[WhiteElo "1953"]
[BlackElo "2490"]
[Result "0-1"]
[Round "08"]
[TimeControl "180+2"]
[Date "2023.04.25"]
[WhiteClock "0:01:49"]
[BlackClock "0:02:24"]

1. e4 {[%clk 0:03:00]}  e6 {[%clk 0:02:53]} 2. Nf3 {[%clk 0:03:01]}  d5 {[%clk 0:02:53]} 3. e5 {[%clk 0:03:01]}  c5 {[%clk 0:02:53]} 4. b4 {[%clk 0:03:02]}  b6 {[%clk 0:02:52]} 5. bxc5 {[%clk 0:03:01]}  bxc5 {[%clk 0:02:51]} 6. c3 {[%clk 0:03:02]}  Qd7 {[%clk 0:02:50]} 7. d4 {[%clk 0:03:00]}  Ba6 {[%clk 0:02:50]} 8. Bd3 {[%clk 0:02:59]}  Bxd3 {[%clk 0:02:48]} 9. Qxd3 {[%clk 0:03:00]}  Nc6 {[%clk 0:02:47]} 10. O-O {[%clk 0:03:00]}  Nge7 {[%clk 0:02:45]} 11. Na3 {[%clk 0:02:56]}  c4 {[%clk 0:02:42]} 12. Qe2 {[%clk 0:02:47]}  Nf5 {[%clk 0:02:42]} 13. Nc2 {[%clk 0:02:45]}  Be7 {[%clk 0:02:40]} 14. Ne3 {[%clk 0:02:45]}  Nxe3 {[%clk 0:02:40]} 15. fxe3 {[%clk 0:02:41]}  O-O {[%clk 0:02:41]} 16. e4 {[%clk 0:02:41]}  Rab8 {[%clk 0:02:38]} 17. exd5 {[%clk 0:02:37]}  exd5 {[%clk 0:02:31]} 18. Bg5 {[%clk 0:02:34]}  Nd8 {[%clk 0:02:30]} 19. Qf2 {[%clk 0:02:17]}  Ne6 {[%clk 0:02:29]} 20. Bxe7 {[%clk 0:02:11]}  Qxe7 {[%clk 0:02:30]} 21. Nh4 {[%clk 0:02:12]}  g6 {[%clk 0:02:27]} 22. g3 {[%clk 0:01:53]}  Ng5 {[%clk 0:02:26]} 23. Ng2 {[%clk 0:01:49]}  Nh3+ {[%clk 0:02:24]} 0-1


[Site "https://www.chess.com"]

[Event "Titled Tuesday Blitz April 25 Late 2023"]
[White "Pinto, Daniel"]
[Black "Kohler, Aran"]
[WhiteFideId "3303144"]
[BlackFideId "1002856"]
[WhiteElo "2145"]
[BlackElo "2010"]
[Result "1-0"]
[Round "08"]
[TimeControl "180+2"]
[Date "2023.04.25"]
[WhiteClock "0:00:04"]
[BlackClock "0:00:02"]

1. e4 {[%clk 0:02:52]}  c6 {[%clk 0:02:59]} 2. d4 {[%clk 0:02:50]}  d5 {[%clk 0:03:00]} 3. e5 {[%clk 0:02:51]}  c5 {[%clk 0:03:00]} 4. dxc5 {[%clk 0:02:50]}  Nc6 {[%clk 0:02:55]} 5. Nf3 {[%clk 0:02:50]}  e6 {[%clk 0:02:49]} 6. a3 {[%clk 0:02:50]}  Bxc5 {[%clk 0:02:48]} 7. b4 {[%clk 0:02:50]}  Bb6 {[%clk 0:02:47]} 8. Bb2 {[%clk 0:02:50]}  Nh6 {[%clk 0:02:45]} 9. Bd3 {[%clk 0:02:34]}  O-O {[%clk 0:02:36]} 10. Qd2 {[%clk 0:02:31]}  Kh8 {[%clk 0:02:25]} 11. O-O {[%clk 0:02:25]}  Nf5 {[%clk 0:02:11]} 12. g4 {[%clk 0:02:05]}  Nh4 {[%clk 0:01:58]} 13. Nxh4 {[%clk 0:02:02]}  Qxh4 {[%clk 0:01:58]} 14. Qf4 {[%clk 0:02:03]}  f5 {[%clk 0:01:45]} 15. Nd2 {[%clk 0:00:30]}  Bd7 {[%clk 0:01:35]} 16. h3 {[%clk 0:00:13]}  g5 {[%clk 0:01:24]} 17. Qf3 {[%clk 0:00:10]}  fxg4 {[%clk 0:01:17]} 18. Qxg4 {[%clk 0:00:11]}  Rf4 {[%clk 0:01:11]} 19. Qxh4 {[%clk 0:00:09]}  Rxh4 {[%clk 0:01:12]} 20. Nf3 {[%clk 0:00:03]}  Rxh3 {[%clk 0:01:07]} 21. Kg2 {[%clk 0:00:03]}  g4 {[%clk 0:01:04]} 22. Ng5 {[%clk 0:00:04]}  Rh5 {[%clk 0:01:04]} 23. Nf7+ {[%clk 0:00:01]}  Kg7 {[%clk 0:01:05]} 24. Nd6 {[%clk 0:00:01]}  Rf8 {[%clk 0:01:04]} 25. f3 {[%clk 0:00:01]}  gxf3+ {[%clk 0:00:59]} 26. Rxf3 {[%clk 0:00:02]}  Rg5+ {[%clk 0:00:57]} 27. Rg3 {[%clk 0:00:02]}  Rxg3+ {[%clk 0:00:56]} 28. Kxg3 {[%clk 0:00:02]}  Bd4 {[%clk 0:00:54]} 29. Bxd4 {[%clk 0:00:02]}  Nxd4 {[%clk 0:00:55]} 30. Rh1 {[%clk 0:00:02]}  Nf5+ {[%clk 0:00:53]} 31. Bxf5 {[%clk 0:00:02]}  exf5 {[%clk 0:00:53]} 32. Kf4 {[%clk 0:00:03]}  h6 {[%clk 0:00:51]} 33. Rg1+ {[%clk 0:00:03]}  Kh7 {[%clk 0:00:51]} 34. c3 {[%clk 0:00:03]}  Be6 {[%clk 0:00:51]} 35. Nb5 {[%clk 0:00:02]}  a6 {[%clk 0:00:51]} 36. Nd4 {[%clk 0:00:02]}  Bg8 {[%clk 0:00:33]} 37. e6 {[%clk 0:00:03]}  Re8 {[%clk 0:00:30]} 38. Kxf5 {[%clk 0:00:03]}  Bxe6+ {[%clk 0:00:20]} 39. Nxe6 {[%clk 0:00:02]}  Rc8 {[%clk 0:00:20]} 40. Rg7+ {[%clk 0:00:02]}  Kh8 {[%clk 0:00:21]} 41. Rc7 {[%clk 0:00:03]}  Rg8 {[%clk 0:00:18]} 42. Rxb7 {[%clk 0:00:03]}  Rg3 {[%clk 0:00:17]} 43. Nf4 {[%clk 0:00:03]}  Rxc3 {[%clk 0:00:17]} 44. a4 {[%clk 0:00:03]}  Rc4 {[%clk 0:00:15]} 45. Nxd5 {[%clk 0:00:03]}  a5 {[%clk 0:00:14]} 46. Nf6 {[%clk 0:00:03]}  Rc7 {[%clk 0:00:07]} 47. Rxc7 {[%clk 0:00:03]}  axb4 {[%clk 0:00:02]} 48. Rh7# {[%clk 0:00:04]} 1-0


[Site "https://www.chess.com"]

[Event "Titled Tuesday Blitz April 25 Late 2023"]
[White "Kostiukov, Alexandr"]
[Black "Srinath, Rao S.V."]
[WhiteFideId "14108100"]
[BlackFideId "5028876"]
[WhiteElo "2202"]
[BlackElo "2196"]
[Result "1-0"]
[Round "08"]
[TimeControl "180+2"]
[Date "2023.04.25"]
[WhiteClock "0:00:48"]
[BlackClock "0:00:02"]

1. g3 {[%clk 0:03:00]}  d5 {[%clk 0:02:57]} 2. Bg2 {[%clk 0:03:00]}  g6 {[%clk 0:02:57]} 3. d3 {[%clk 0:02:55]}  Bg7 {[%clk 0:02:56]} 4. e4 {[%clk 0:02:55]}  dxe4 {[%clk 0:02:55]} 5. dxe4 {[%clk 0:02:56]}  Qxd1+ {[%clk 0:02:53]} 6. Kxd1 {[%clk 0:02:57]}  Nc6 {[%clk 0:02:53]} 7. c3 {[%clk 0:02:57]}  Nf6 {[%clk 0:02:51]} 8. f3 {[%clk 0:02:58]}  O-O {[%clk 0:02:51]} 9. Be3 {[%clk 0:02:58]}  Rd8+ {[%clk 0:02:50]} 10. Nd2 {[%clk 0:02:57]}  Be6 {[%clk 0:02:49]} 11. Kc2 {[%clk 0:02:54]}  Ne5 {[%clk 0:02:46]} 12. Bh3 {[%clk 0:02:52]}  Bxh3 {[%clk 0:02:42]} 13. Nxh3 {[%clk 0:02:53]}  c6 {[%clk 0:02:13]} 14. Nf2 {[%clk 0:02:50]}  b5 {[%clk 0:02:09]} 15. a4 {[%clk 0:02:49]}  a6 {[%clk 0:02:00]} 16. Rhd1 {[%clk 0:02:42]}  h5 {[%clk 0:01:51]} 17. h3 {[%clk 0:02:36]}  Ned7 {[%clk 0:01:35]} 18. f4 {[%clk 0:02:33]}  e5 {[%clk 0:01:35]} 19. f5 {[%clk 0:02:34]}  gxf5 {[%clk 0:01:34]} 20. exf5 {[%clk 0:02:34]}  Nd5 {[%clk 0:01:34]} 21. Re1 {[%clk 0:02:19]}  Nxe3+ {[%clk 0:01:31]} 22. Rxe3 {[%clk 0:02:19]}  Bh6 {[%clk 0:01:29]} 23. Re2 {[%clk 0:02:19]}  Nc5 {[%clk 0:01:23]} 24. Nde4 {[%clk 0:02:07]}  Nxa4 {[%clk 0:01:16]} 25. g4 {[%clk 0:01:54]}  hxg4 {[%clk 0:01:10]} 26. hxg4 {[%clk 0:01:55]}  Bf4 {[%clk 0:01:06]} 27. Nd3 {[%clk 0:01:53]}  Kg7 {[%clk 0:00:47]} 28. g5 {[%clk 0:01:42]}  c5 {[%clk 0:00:37]} 29. Rh1 {[%clk 0:01:28]}  Rh8 {[%clk 0:00:34]} 30. Rg1 {[%clk 0:01:08]}  c4 {[%clk 0:00:08]} 31. Nxf4 {[%clk 0:01:05]}  exf4 {[%clk 0:00:09]} 32. Nf6 {[%clk 0:01:02]}  f3 {[%clk 0:00:05]} 33. Rf2 {[%clk 0:01:00]}  Nc5 {[%clk 0:00:03]} 34. Rxf3 {[%clk 0:00:59]}  Rh2+ {[%clk 0:00:03]} 35. Kb1 {[%clk 0:00:54]}  Nd3 {[%clk 0:00:02]} 36. Ka1 {[%clk 0:00:48]} 1-0


[Site "https://www.chess.com"]

[Event "Titled Tuesday Blitz April 25 Late 2023"]
[White "Mazurkiewicz, Michal"]
[Black "Kraus, Tomas"]
[WhiteFideId "1124943"]
[BlackFideId "331708"]
[WhiteElo "2054"]
[BlackElo "2389"]
[Result "1-0"]
[Round "08"]
[TimeControl "180+2"]
[Date "2023.04.25"]
[WhiteClock "0:02:25"]
[BlackClock "0:01:48"]

1. e4 {[%clk 0:03:00]}  c5 {[%clk 0:02:55]} 2. Nf3 {[%clk 0:02:59]}  d6 {[%clk 0:02:52]} 3. g3 {[%clk 0:02:58]}  Nf6 {[%clk 0:02:48]} 4. d3 {[%clk 0:02:58]}  Nc6 {[%clk 0:02:43]} 5. Bg2 {[%clk 0:02:58]}  g6 {[%clk 0:02:42]} 6. O-O {[%clk 0:02:57]}  Bg7 {[%clk 0:02:43]} 7. Re1 {[%clk 0:02:56]}  O-O {[%clk 0:02:44]} 8. e5 {[%clk 0:02:53]}  dxe5 {[%clk 0:02:42]} 9. Nxe5 {[%clk 0:02:54]}  Nxe5 {[%clk 0:02:39]} 10. Rxe5 {[%clk 0:02:54]}  Qc7 {[%clk 0:02:28]} 11. Bf4 {[%clk 0:02:49]}  Qb6 {[%clk 0:02:24]} 12. Nc3 {[%clk 0:02:48]}  Qxb2 {[%clk 0:02:23]} 13. Rxc5 {[%clk 0:02:49]}  Nd7 {[%clk 0:02:20]} 14. Rc7 {[%clk 0:02:46]}  Bxc3 {[%clk 0:02:19]} 15. Rb1 {[%clk 0:02:46]}  Qxa2 {[%clk 0:02:12]} 16. Rxc3 {[%clk 0:02:44]}  Nb6 {[%clk 0:02:10]} 17. Rcb3 {[%clk 0:02:40]}  Qa5 {[%clk 0:02:05]} 18. Ra1 {[%clk 0:02:40]}  Qc5 {[%clk 0:01:49]} 19. Be3 {[%clk 0:02:35]}  Qe5 {[%clk 0:01:48]} 20. Bxb6 {[%clk 0:02:25]} 1-0


[Site "https://www.chess.com"]

[Event "Titled Tuesday Blitz April 25 Late 2023"]
[White "Simonovic, Miroslav"]
[Black "Ansh M Shah"]
[WhiteFideId "919152"]
[BlackFideId "25033379"]
[WhiteElo "2042"]
[BlackElo "2084"]
[Result "0-1"]
[Round "08"]
[TimeControl "180+2"]
[Date "2023.04.25"]
[WhiteClock "0:00:04"]
[BlackClock "0:00:05"]

1. d4 {[%clk 0:03:00]}  Nf6 {[%clk 0:03:00]} 2. Bg5 {[%clk 0:03:01]}  h6 {[%clk 0:02:59]} 3. Bxf6 {[%clk 0:03:01]}  exf6 {[%clk 0:03:00]} 4. c4 {[%clk 0:03:01]}  d5 {[%clk 0:03:00]} 5. Nc3 {[%clk 0:03:01]}  dxc4 {[%clk 0:03:01]} 6. e3 {[%clk 0:03:01]}  a6 {[%clk 0:03:01]} 7. a4 {[%clk 0:03:00]}  c5 {[%clk 0:03:00]} 8. dxc5 {[%clk 0:02:58]}  Qxd1+ {[%clk 0:02:59]} 9. Rxd1 {[%clk 0:02:59]}  Bxc5 {[%clk 0:02:59]} 10. Bxc4 {[%clk 0:03:00]}  Nc6 {[%clk 0:02:58]} 11. Nf3 {[%clk 0:02:52]}  O-O {[%clk 0:02:57]} 12. O-O {[%clk 0:02:51]}  Be6 {[%clk 0:02:53]} 13. Nd5 {[%clk 0:02:49]}  Rac8 {[%clk 0:02:48]} 14. b3 {[%clk 0:02:29]}  Rfd8 {[%clk 0:02:46]} 15. Rd2 {[%clk 0:02:27]}  Nb4 {[%clk 0:02:41]} 16. Rfd1 {[%clk 0:02:26]}  Nxd5 {[%clk 0:02:36]} 17. Bxd5 {[%clk 0:02:26]}  Bxd5 {[%clk 0:02:31]} 18. Rxd5 {[%clk 0:02:27]}  Rxd5 {[%clk 0:02:31]} 19. Rxd5 {[%clk 0:02:28]}  Bb4 {[%clk 0:02:18]} 20. g3 {[%clk 0:02:19]}  b6 {[%clk 0:02:14]} 21. Nd4 {[%clk 0:02:11]}  Rc3 {[%clk 0:02:07]} 22. Rd8+ {[%clk 0:02:10]}  Kh7 {[%clk 0:02:07]} 23. Rb8 {[%clk 0:02:11]}  Bc5 {[%clk 0:02:06]} 24. b4 {[%clk 0:02:05]}  Bxb4 {[%clk 0:01:43]} 25. Rxb6 {[%clk 0:02:04]}  a5 {[%clk 0:01:43]} 26. Rb7 {[%clk 0:01:58]}  Kg6 {[%clk 0:01:37]} 27. h4 {[%clk 0:01:54]}  h5 {[%clk 0:01:37]} 28. Ne2 {[%clk 0:01:49]}  Ra3 {[%clk 0:01:27]} 29. Nf4+ {[%clk 0:01:49]}  Kh6 {[%clk 0:01:27]} 30. Rxf7 {[%clk 0:01:50]}  Rxa4 {[%clk 0:01:26]} 31. Ne6 {[%clk 0:01:49]}  g6 {[%clk 0:00:58]} 32. Rxf6 {[%clk 0:01:45]}  Bc3 {[%clk 0:00:58]} 33. Rf7 {[%clk 0:01:42]}  Ra1+ {[%clk 0:00:53]} 34. Kg2 {[%clk 0:01:42]}  a4 {[%clk 0:00:51]} 35. Ng5 {[%clk 0:01:34]}  Bg7 {[%clk 0:00:52]} 36. Ne6 {[%clk 0:01:33]}  Be5 {[%clk 0:00:39]} 37. f3 {[%clk 0:01:25]}  a3 {[%clk 0:00:26]} 38. g4 {[%clk 0:01:25]}  Ra2+ {[%clk 0:00:19]} 39. Kf1 {[%clk 0:01:20]}  hxg4 {[%clk 0:00:19]} 40. fxg4 {[%clk 0:01:19]}  Rc2 {[%clk 0:00:10]} 41. Ng5 {[%clk 0:00:18]}  Bg7 {[%clk 0:00:10]} 42. Nh3 {[%clk 0:00:14]}  a2 {[%clk 0:00:09]} 43. g5+ {[%clk 0:00:14]}  Kh5 {[%clk 0:00:09]} 44. Nf4+ {[%clk 0:00:14]}  Kg4 {[%clk 0:00:09]} 45. Ra7 {[%clk 0:00:11]}  a1=Q+ {[%clk 0:00:06]} 46. Rxa1 {[%clk 0:00:11]}  Bxa1 {[%clk 0:00:06]} 47. Nxg6 {[%clk 0:00:11]}  Kh5 {[%clk 0:00:05]} 48. Nf4+ {[%clk 0:00:07]}  Kxh4 {[%clk 0:00:05]} 49. g6 {[%clk 0:00:08]}  Bf6 {[%clk 0:00:04]} 50. e4 {[%clk 0:00:05]}  Kg5 {[%clk 0:00:04]} 51. Nd5 {[%clk 0:00:03]}  Kxg6 {[%clk 0:00:04]} 52. Ne3 {[%clk 0:00:02]}  Ra2 {[%clk 0:00:04]} 53. Nc4 {[%clk 0:00:01]}  Kf7 {[%clk 0:00:03]} 54. e5 {[%clk 0:00:01]}  Be7 {[%clk 0:00:03]} 55. Ke1 {[%clk 0:00:02]}  Ke6 {[%clk 0:00:03]} 56. Kd1 {[%clk 0:00:02]}  Bc5 {[%clk 0:00:04]} 57. Nd6 {[%clk 0:00:02]}  Bxd6 {[%clk 0:00:04]} 58. exd6 {[%clk 0:00:02]}  Kxd6 {[%clk 0:00:05]} 59. Kc1 {[%clk 0:00:03]}  Rh2 {[%clk 0:00:05]} 60. Kb1 {[%clk 0:00:04]}  Ke5 {[%clk 0:00:05]} 0-1


[Site "https://www.chess.com"]